Workbook

Sheet Financial Model
A1: Assumptions
B2: Subprime Debt Assumptions
D3: Rate Charged on Sub-prime Loans | E3: 0.07
D4: Subprime Repayment Years | E4: 30 | I4: Equity IRR | J4: =H65 -> -0.06037515981
D5: Initial PD | E5: 0.23 | I5: Debt IRR | J5: =H68 -> 0.035
D6: Years of High Default | E6: 9
D7: Stable PD | E7: 0.01
D8: LGD | E8: =F8/100 -> 0.13 | F8: 13
D9: Delay in Recoveries | E9: 3
B10: Financial Structure Assumptions
D11: Amount of Subprime Loans | E11: 1000
D12: Loans/Equity | E12: 10
D13: Equity to Assets | E13: =1/E12 -> 0.1
D14: Interest Rate on Top-tier Debt | E14: 0.035
D15: Fees | E15: 0.07
B16: Time Line
D17: Period | H17: 0 | I17: =H17+1 -> 1 | J17: =I17+1 -> 2 | K17: 3 | L17: 4 | M17: 5 | N17: 6 | O17: 7 | P17: 8 | Q17: 9 | R17: 10 | S17: 11 | T17: 12 | U17: 13 | V17: 14 | W17: 15 | X17: 16 | Y17: 17 | Z17: 18 | AA17: 19 | AB17: 20 | AC17: 21 | AD17: 22 | AE17: 23 | AF17: 24 | AG17: 25 | AH17: 26 | AI17: 27 | AJ17: 28 | AK17: 29 | AL17: 30
D18: High Default Period | F18: =E6 -> 9 | I18: =I17<=$F$18 -> TRUE | J18: =J17<=$F$18 -> TRUE | K18: TRUE | L18: TRUE | M18: TRUE | N18: TRUE | O18: TRUE | P18: TRUE | Q18: TRUE | R18: FALSE | S18: FALSE | T18: FALSE | U18: FALSE | V18: FALSE | W18: FALSE | X18: FALSE | Y18: FALSE | Z18: FALSE | AA18: FALSE | AB18: FALSE | AC18: FALSE | AD18: FALSE | AE18: FALSE | AF18: FALSE | AG18: FALSE | AH18: FALSE | AI18: FALSE | AJ18: FALSE | AK18: FALSE | AL18: FALSE
B19: Annual Assumptions
D20: PD | F20: =E5 -> 0.23 | G20: =E7 -> 0.01 | I20: =I18*$F$20+NOT(I18)*$G$20 -> 0.23 | J20: =J18*$F$20+NOT(J18)*$G$20 -> 0.23 | K20: 0.23 | L20: 0.23 | M20: 0.23 | N20: 0.23 | O20: 0.23 | P20: 0.23 | Q20: 0.23 | R20: 0.01 | S20: 0.01 | T20: 0.01 | U20: 0.01 | V20: 0.01 | W20: 0.01 | X20: 0.01 | Y20: 0.01 | Z20: 0.01 | AA20: 0.01 | AB20: 0.01 | AC20: 0.01 | AD20: 0.01 | AE20: 0.01 | AF20: 0.01 | AG20: 0.01 | AH20: 0.01 | AI20: 0.01 | AJ20: 0.01 | AK20: 0.01 | AL20: 0.01
D21: Cumulative Defaults Index | H21: 1 | I21: =H21*(1+I20) -> 1.23 | J21: =I21*(1+J20) -> 1.5129 | K21: 1.860867 | L21: 2.28886641 | M21: 2.815305684 | N21: 3.462825992 | O21: 4.25927597 | P21: 5.238909443 | Q21: 6.443858615 | R21: 6.508297201 | S21: 6.573380173 | T21: 6.639113975 | U21: 6.705505114 | V21: 6.772560165 | W21: 6.840285767 | X21: 6.908688625 | Y21: 6.977775511 | Z21: 7.047553266 | AA21: 7.118028799 | AB21: 7.189209087 | AC21: 7.261101178 | AD21: 7.333712189 | AE21: 7.407049311 | AF21: 7.481119804 | AG21: 7.555931002 | AH21: 7.631490313 | AI21: 7.707805216 | AJ21: 7.784883268 | AK21: 7.8627321 | AL21: 7.941359421
D22: Cumulative Defaults | I22: =1-I23 -> 0.23 | J22: =1-J23 -> 0.4071 | K22: 0.543467 | L22: 0.64846959 | M22: 0.7293215843 | N22: 0.7915776199 | O22: 0.8395147673 | P22: 0.8764263708 | Q22: 0.9048483056 | R22: 0.9057998225 | S22: 0.9067418243 | T22: 0.907674406 | U22: 0.908597662 | V22: 0.9095116853 | W22: 0.9104165685 | X22: 0.9113124028 | Y22: 0.9121992788 | Z22: 0.913077286 | AA22: 0.9139465131 | AB22: 0.914807048 | AC22: 0.9156589775 | AD22: 0.9165023877 | AE22: 0.9173373639 | AF22: 0.9181639902 | AG22: 0.9189823503 | AH22: 0.9197925268 | AI22: 0.9205946016 | AJ22: 0.9213886555 | AK22: 0.922174769 | AL22: 0.9229530213
D23: Loans being paid | H23: 1 | I23: =H23*(1-I20) -> 0.77 | J23: =I23*(1-J20) -> 0.5929 | K23: 0.456533 | L23: 0.35153041 | M23: 0.2706784157 | N23: 0.2084223801 | O23: 0.1604852327 | P23: 0.1235736292 | Q23: 0.09515169445 | R23: 0.0942001775 | S23: 0.09325817573 | T23: 0.09232559397 | U23: 0.09140233803 | V23: 0.09048831465 | W23: 0.08958343151 | X23: 0.08868759719 | Y23: 0.08780072122 | Z23: 0.08692271401 | AA23: 0.08605348687 | AB23: 0.085192952 | AC23: 0.08434102248 | AD23: 0.08349761225 | AE23: 0.08266263613 | AF23: 0.08183600977 | AG23: 0.08101764967 | AH23: 0.08020747317 | AI23: 0.07940539844 | AJ23: 0.07861134446 | AK23: 0.07782523101 | AL23: 0.0770469787
B24: Revenues
C25: Subprime Loan Balance
D26: Opening Balance | I26: =H29 -> 1000 | J26: =I29 -> 761.8484693 | K26: 579.9072752 | L26: 440.9952515 | M26: 335.0074162 | N26: 254.1996102 | O26: 192.6390488 | P26: 145.7823846 | Q26: 110.1517523 | R26: 83.08609591 | S26: 80.42184788 | T26: 77.67552248 | U26: 74.84149339 | V26: 71.91380826 | W26: 68.88616925 | X26: 65.75191253 | Y26: 62.50398645 | Z26: 59.13492849 | AA26: 55.63684085 | AB26: 52.00136449 | AC26: 48.2196518 | AD26: 44.28233748 | AE26: 40.17950782 | AF26: 35.90066809 | AG26: 31.434708 | AH26: 26.76986518 | AI26: 21.89368638 | AJ26: 16.79298651 | AK26: 11.45380508 | AL26: 5.861360252
D27: Less: Repayments | F27: =E4 -> 30 | I27: =PPMT($F$30,I17,$F$27,-$H$29)*I23 -> 8.151530704 | J27: =PPMT($F$30,J17,$F$27,-$H$29)*J23 -> 6.716046147 | K27: 5.53335042 | L27: 4.558927411 | M27: 3.756100294 | N27: 3.094651032 | O27: 2.549682986 | P27: 2.100683812 | Q27: 1.730753393 | R27: 1.833387069 | S27: 1.942106922 | T27: 2.057273862 | U27: 2.179270202 | V27: 2.308500925 | W27: 2.44539503 | X27: 2.590406956 | Y27: 2.744018088 | Z27: 2.906738361 | AA27: 3.079107945 | AB27: 3.261699047 | AC27: 3.4551178 | AD27: 3.660006286 | AE27: 3.877044658 | AF27: 4.106953407 | AG27: 4.350495744 | AH27: 4.608480141 | AI27: 4.881763014 | AJ27: 5.17125156 | AK27: 5.477906778 | AL27: 5.80274665
D28: Less: Default | I28: =I26*I20 -> 230 | J28: =J26*J20 -> 175.2251479 | K28: 133.3786733 | L28: 101.4289078 | M28: 77.05170573 | N28: 58.46591035 | O28: 44.30698123 | P28: 33.52994846 | Q28: 25.33490304 | R28: 0.8308609591 | S28: 0.8042184788 | T28: 0.7767552248 | U28: 0.7484149339 | V28: 0.7191380826 | W28: 0.6888616925 | X28: 0.6575191253 | Y28: 0.6250398645 | Z28: 0.5913492849 | AA28: 0.5563684085 | AB28: 0.5200136449 | AC28: 0.482196518 | AD28: 0.4428233748 | AE28: 0.4017950782 | AF28: 0.3590066809 | AG28: 0.31434708 | AH28: 0.2676986518 | AI28: 0.2189368638 | AJ28: 0.1679298651 | AK28: 0.1145380508 | AL28: 0.05861360252
D29: Closing Balance | H29: =E11 -> 1000 | I29: =I26-I27-I28 -> 761.8484693 | J29: =J26-J27-J28 -> 579.9072752 | K29: 440.9952515 | L29: 335.0074162 | M29: 254.1996102 | N29: 192.6390488 | O29: 145.7823846 | P29: 110.1517523 | Q29: 83.08609591 | R29: 80.42184788 | S29: 77.67552248 | T29: 74.84149339 | U29: 71.91380826 | V29: 68.88616925 | W29: 65.75191253 | X29: 62.50398645 | Y29: 59.13492849 | Z29: 55.63684085 | AA29: 52.00136449 | AB29: 48.2196518 | AC29: 44.28233748 | AD29: 40.17950782 | AE29: 35.90066809 | AF29: 31.434708 | AG29: 26.76986518 | AH29: 21.89368638 | AI29: 16.79298651 | AJ29: 11.45380508 | AK29: 5.861360252 | AL29: -2.904620988e-14
D30: Interest Income | F30: =E3 -> 0.07 | I30: =I26*$F$30 -> 70 | J30: =J26*$F$30 -> 53.32939285 | K30: 40.59350926 | L30: 30.8696676 | M30: 23.45051914 | N30: 17.79397271 | O30: 13.48473342 | P30: 10.20476692 | Q30: 7.710622664 | R30: 5.816026714 | S30: 5.629529352 | T30: 5.437286574 | U30: 5.238904538 | V30: 5.033966578 | W30: 4.822031847 | X30: 4.602633877 | Y30: 4.375279051 | Z30: 4.139444995 | AA30: 3.894578859 | AB30: 3.640095515 | AC30: 3.375375626 | AD30: 3.099763624 | AE30: 2.812565548 | AF30: 2.513046766 | AG30: 2.20042956 | AH30: 1.873890562 | AI30: 1.532558047 | AJ30: 1.175509055 | AK30: 0.8017663557 | AL30: 0.4102952177
C31: Recoveries of Defaults
D32: Default | I32: =I28 -> 230 | J32: =J28 -> 175.2251479 | K32: 133.3786733 | L32: 101.4289078 | M32: 77.05170573 | N32: 58.46591035 | O32: 44.30698123 | P32: 33.52994846 | Q32: 25.33490304 | R32: 0.8308609591 | S32: 0.8042184788 | T32: 0.7767552248 | U32: 0.7484149339 | V32: 0.7191380826 | W32: 0.6888616925 | X32: 0.6575191253 | Y32: 0.6250398645 | Z32: 0.5913492849 | AA32: 0.5563684085 | AB32: 0.5200136449 | AC32: 0.482196518 | AD32: 0.4428233748 | AE32: 0.4017950782 | AF32: 0.3590066809 | AG32: 0.31434708 | AH32: 0.2676986518 | AI32: 0.2189368638 | AJ32: 0.1679298651 | AK32: 0.1145380508 | AL32: 0.05861360252
D33: Loss on Default | F33: =1-E8 -> 0.87 | I33: =I32*$F$33 -> 200.1 | J33: =J32*$F$33 -> 152.4458787 | K33: 116.0394458 | L33: 88.24314982 | M33: 67.03498399 | N33: 50.865342 | O33: 38.54707367 | P33: 29.17105516 | Q33: 22.04136564 | R33: 0.7228490344 | S33: 0.6996700766 | T33: 0.6757770456 | U33: 0.6511209925 | V33: 0.6256501318 | W33: 0.5993096725 | X33: 0.572041639 | Y33: 0.5437846821 | Z33: 0.5144738779 | AA33: 0.4840405154 | AB33: 0.4524118711 | AC33: 0.4195109707 | AD33: 0.3852563361 | AE33: 0.3495617181 | AF33: 0.3123358124 | AG33: 0.2734819596 | AH33: 0.232897827 | AI33: 0.1904750715 | AJ33: 0.1460989826 | AK33: 0.0996481042 | AL33: 0.05099383419
D34: Delayed Recoveries | F34: =E9 -> 3 | I34: =IF(I17>=$F$34,OFFSET(I33,0,-$F$34)) -> FALSE | J34: =IF(J17>=$F$34,OFFSET(J33,0,-$F$34)) -> FALSE | K34: 0 | L34: 200.1 | M34: 152.4458787 | N34: 116.0394458 | O34: 88.24314982 | P34: 67.03498399 | Q34: 50.865342 | R34: 38.54707367 | S34: 29.17105516 | T34: 22.04136564 | U34: 0.7228490344 | V34: 0.6996700766 | W34: 0.6757770456 | X34: 0.6511209925 | Y34: 0.6256501318 | Z34: 0.5993096725 | AA34: 0.572041639 | AB34: 0.5437846821 | AC34: 0.5144738779 | AD34: 0.4840405154 | AE34: 0.4524118711 | AF34: 0.4195109707 | AG34: 0.3852563361 | AH34: 0.3495617181 | AI34: 0.3123358124 | AJ34: 0.2734819596 | AK34: 0.232897827 | AL34: 0.1904750715
B35: Sources and Uses
C36: Uses of Funds
D37: Purchase of Subprime Loans | H37: =H29 -> 1000
D38: Fees | F38: =E15 -> 0.07 | H38: =H37*F38 -> 70
D39: Total Uses | H39: =SUM(H37:H38) -> 1070
C41: Sources of Funds
D42: Debt | H42: =H39-H43 -> 963 | I42: =H42/H44 -> 0.9
D43: Equity | H43: =H39/E12 -> 107 | I43: =H43/H39 -> 0.1
D44: Total Souces | H44: =SUM(H42:H43) -> 1070 | I44: =H44/H44 -> 1
B46: Debt Schedule - Top-tier AAA Debt
C47: Opening Balance | I47: =H50 -> 963 | J47: =I50 -> 918.5534693 | K47: 890.6574017 | L47: 875.7035511 | M47: 670.8245804 | N47: 514.6509425 | O47: 395.735656 | P47: 305.3088378 | Q47: 236.6542124 | R47: 184.6303917 | S47: 144.895968 | T47: 113.2246354 | U47: 87.65157159 | V47: 82.57835282 | W47: 77.42645759 | X47: 72.19317968 | Y47: 66.87577914 | Z47: 61.47148414 | AA47: 55.97749306 | AB47: 50.39097687 | AC47: 44.70908182 | AD47: 38.92893238 | AE47: 33.04763459 | AF47: 27.06227972 | AG47: 20.96994837 | AH47: 14.76771492 | AI47: 8.452652524 | AJ47: 2.021838489 | AK47: 0 | AL47: 0
C48: Add: Defaults on Interest | I48: =I51-I58 -> 0 | J48: =J51-J58 -> 0 | K48: 0 | L48: 0 | M48: 0 | N48: 0 | O48: 0 | P48: 0 | Q48: 0 | R48: 0 | S48: 0 | T48: 0 | U48: 0 | V48: 0 | W48: 0 | X48: 0 | Y48: 0 | Z48: 0 | AA48: 0 | AB48: 0 | AC48: 0 | AD48: 0 | AE48: 0 | AF48: 0 | AG48: 0 | AH48: 0 | AI48: 0 | AJ48: 0 | AK48: 0 | AL48: 0
C49: Less: Repayment | I49: =I60 -> 44.4465307 | J49: =J60 -> 27.89606757 | K49: 14.95385062 | L49: 204.8789707 | M49: 156.1736378 | N49: 118.9152865 | O49: 90.42681827 | P49: 68.6546254 | Q49: 52.02382063 | R49: 39.73442374 | S49: 31.67133256 | T49: 25.57306384 | U49: 5.073218769 | V49: 5.151895231 | W49: 5.233277908 | X49: 5.317400536 | Y49: 5.404295001 | Z49: 5.493991083 | AA49: 5.586516187 | AB49: 5.681895053 | AC49: 5.78014944 | AD49: 5.881297792 | AE49: 5.985354866 | AF49: 6.092331353 | AG49: 6.202233447 | AH49: 6.315062399 | AI49: 6.430814034 | AJ49: 2.021838489 | AK49: 0 | AL49: 0
C50: Closing Balance | H50: =H42 -> 963 | I50: =I47+I48-I49 -> 918.5534693 | J50: =J47+J48-J49 -> 890.6574017 | K50: 875.7035511 | L50: 670.8245804 | M50: 514.6509425 | N50: 395.735656 | O50: 305.3088378 | P50: 236.6542124 | Q50: 184.6303917 | R50: 144.895968 | S50: 113.2246354 | T50: 87.65157159 | U50: 82.57835282 | V50: 77.42645759 | W50: 72.19317968 | X50: 66.87577914 | Y50: 61.47148414 | Z50: 55.97749306 | AA50: 50.39097687 | AB50: 44.70908182 | AC50: 38.92893238 | AD50: 33.04763459 | AE50: 27.06227972 | AF50: 20.96994837 | AG50: 14.76771492 | AH50: 8.452652524 | AI50: 2.021838489 | AJ50: 0 | AK50: 0 | AL50: 0
C51: Interest Expense | F51: =E14 -> 0.035 | I51: =I47*$F$51 -> 33.705 | J51: =J47*$F$51 -> 32.14937143 | K51: 31.17300906 | L51: 30.64962429 | M51: 23.47886031 | N51: 18.01278299 | O51: 13.85074796 | P51: 10.68580932 | Q51: 8.282897432 | R51: 6.46206371 | S51: 5.071358879 | T51: 3.96286224 | U51: 3.067805006 | V51: 2.890242349 | W51: 2.709926016 | X51: 2.526761289 | Y51: 2.34065227 | Z51: 2.151501945 | AA51: 1.959212257 | AB51: 1.763684191 | AC51: 1.564817864 | AD51: 1.362512633 | AE51: 1.156667211 | AF51: 0.9471797903 | AG51: 0.7339481929 | AH51: 0.5168700223 | AI51: 0.2958428383 | AJ51: 0.07076434713 | AK51: 0 | AL51: 0
B53: Cash Flow Waterfall
C54: Revenues from Interest Income on Subprime | I54: =I30 -> 70 | J54: =J30 -> 53.32939285 | K54: 40.59350926 | L54: 30.8696676 | M54: 23.45051914 | N54: 17.79397271 | O54: 13.48473342 | P54: 10.20476692 | Q54: 7.710622664 | R54: 5.816026714 | S54: 5.629529352 | T54: 5.437286574 | U54: 5.238904538 | V54: 5.033966578 | W54: 4.822031847 | X54: 4.602633877 | Y54: 4.375279051 | Z54: 4.139444995 | AA54: 3.894578859 | AB54: 3.640095515 | AC54: 3.375375626 | AD54: 3.099763624 | AE54: 2.812565548 | AF54: 2.513046766 | AG54: 2.20042956 | AH54: 1.873890562 | AI54: 1.532558047 | AJ54: 1.175509055 | AK54: 0.8017663557 | AL54: 0.4102952177
C55: Add: Repayment of Subprime Debt | I55: =I27 -> 8.151530704 | J55: =J27 -> 6.716046147 | K55: 5.53335042 | L55: 4.558927411 | M55: 3.756100294 | N55: 3.094651032 | O55: 2.549682986 | P55: 2.100683812 | Q55: 1.730753393 | R55: 1.833387069 | S55: 1.942106922 | T55: 2.057273862 | U55: 2.179270202 | V55: 2.308500925 | W55: 2.44539503 | X55: 2.590406956 | Y55: 2.744018088 | Z55: 2.906738361 | AA55: 3.079107945 | AB55: 3.261699047 | AC55: 3.4551178 | AD55: 3.660006286 | AE55: 3.877044658 | AF55: 4.106953407 | AG55: 4.350495744 | AH55: 4.608480141 | AI55: 4.881763014 | AJ55: 5.17125156 | AK55: 5.477906778 | AL55: 5.80274665
C56: Add: Recoveries | I56: =I34 -> FALSE | J56: =J34 -> FALSE | K56: 0 | L56: 200.1 | M56: 152.4458787 | N56: 116.0394458 | O56: 88.24314982 | P56: 67.03498399 | Q56: 50.865342 | R56: 38.54707367 | S56: 29.17105516 | T56: 22.04136564 | U56: 0.7228490344 | V56: 0.6996700766 | W56: 0.6757770456 | X56: 0.6511209925 | Y56: 0.6256501318 | Z56: 0.5993096725 | AA56: 0.572041639 | AB56: 0.5437846821 | AC56: 0.5144738779 | AD56: 0.4840405154 | AE56: 0.4524118711 | AF56: 0.4195109707 | AG56: 0.3852563361 | AH56: 0.3495617181 | AI56: 0.3123358124 | AJ56: 0.2734819596 | AK56: 0.232897827 | AL56: 0.1904750715
D57: Total Reveneues | I57: =SUM(I54:I56) -> 78.1515307 | J57: =SUM(J54:J56) -> 60.045439 | K57: 46.12685969 | L57: 235.528595 | M57: 179.6524981 | N57: 136.9280695 | O57: 104.2775662 | P57: 79.34043472 | Q57: 60.30671806 | R57: 46.19648745 | S57: 36.74269143 | T57: 29.53592608 | U57: 8.141023774 | V57: 8.04213758 | W57: 7.943203923 | X57: 7.844161825 | Y57: 7.744947271 | Z57: 7.645493028 | AA57: 7.545728444 | AB57: 7.445579243 | AC57: 7.344967304 | AD57: 7.243810425 | AE57: 7.142022077 | AF57: 7.039511143 | AG57: 6.93618164 | AH57: 6.831932422 | AI57: 6.726656873 | AJ57: 6.620242575 | AK57: 6.51257096 | AL57: 6.403516939
C58: Less: Interest Paid | I58: =MAX(MIN(I57,I51),0) -> 33.705 | J58: =MAX(MIN(J57,J51),0) -> 32.14937143 | K58: 31.17300906 | L58: 30.64962429 | M58: 23.47886031 | N58: 18.01278299 | O58: 13.85074796 | P58: 10.68580932 | Q58: 8.282897432 | R58: 6.46206371 | S58: 5.071358879 | T58: 3.96286224 | U58: 3.067805006 | V58: 2.890242349 | W58: 2.709926016 | X58: 2.526761289 | Y58: 2.34065227 | Z58: 2.151501945 | AA58: 1.959212257 | AB58: 1.763684191 | AC58: 1.564817864 | AD58: 1.362512633 | AE58: 1.156667211 | AF58: 0.9471797903 | AG58: 0.7339481929 | AH58: 0.5168700223 | AI58: 0.2958428383 | AJ58: 0.07076434713 | AK58: 0 | AL58: 0
D59: Cash Flow After Interest | I59: =I57-I58 -> 44.4465307 | J59: =J57-J58 -> 27.89606757 | K59: 14.95385062 | L59: 204.8789707 | M59: 156.1736378 | N59: 118.9152865 | O59: 90.42681827 | P59: 68.6546254 | Q59: 52.02382063 | R59: 39.73442374 | S59: 31.67133256 | T59: 25.57306384 | U59: 5.073218769 | V59: 5.151895231 | W59: 5.233277908 | X59: 5.317400536 | Y59: 5.404295001 | Z59: 5.493991083 | AA59: 5.586516187 | AB59: 5.681895053 | AC59: 5.78014944 | AD59: 5.881297792 | AE59: 5.985354866 | AF59: 6.092331353 | AG59: 6.202233447 | AH59: 6.315062399 | AI59: 6.430814034 | AJ59: 6.549478228 | AK59: 6.51257096 | AL59: 6.403516939
C60: Less: Repayment | I60: =MAX(MIN(I59,I47),0) -> 44.4465307 | J60: =MAX(MIN(J59,J47),0) -> 27.89606757 | K60: 14.95385062 | L60: 204.8789707 | M60: 156.1736378 | N60: 118.9152865 | O60: 90.42681827 | P60: 68.6546254 | Q60: 52.02382063 | R60: 39.73442374 | S60: 31.67133256 | T60: 25.57306384 | U60: 5.073218769 | V60: 5.151895231 | W60: 5.233277908 | X60: 5.317400536 | Y60: 5.404295001 | Z60: 5.493991083 | AA60: 5.586516187 | AB60: 5.681895053 | AC60: 5.78014944 | AD60: 5.881297792 | AE60: 5.985354866 | AF60: 6.092331353 | AG60: 6.202233447 | AH60: 6.315062399 | AI60: 6.430814034 | AJ60: 2.021838489 | AK60: 0 | AL60: 0
D61: Cash Flow After Repayment | I61: =I59-I60 -> 0 | J61: =J59-J60 -> 0 | K61: 0 | L61: 0 | M61: 0 | N61: 0 | O61: 0 | P61: 0 | Q61: 0 | R61: 0 | S61: 0 | T61: 0 | U61: 0 | V61: 0 | W61: 0 | X61: 0 | Y61: 0 | Z61: 0 | AA61: 0 | AB61: 0 | AC61: 0 | AD61: 0 | AE61: 0 | AF61: 0 | AG61: 0 | AH61: 0 | AI61: 0 | AJ61: 4.527639739 | AK61: 6.51257096 | AL61: 6.403516939
C62: Dividends | I62: =I61 -> 0 | J62: =J61 -> 0 | K62: 0 | L62: 0 | M62: 0 | N62: 0 | O62: 0 | P62: 0 | Q62: 0 | R62: 0 | S62: 0 | T62: 0 | U62: 0 | V62: 0 | W62: 0 | X62: 0 | Y62: 0 | Z62: 0 | AA62: 0 | AB62: 0 | AC62: 0 | AD62: 0 | AE62: 0 | AF62: 0 | AG62: 0 | AH62: 0 | AI62: 0 | AJ62: 4.527639739 | AK62: 6.51257096 | AL62: 6.403516939
C64: Equity cash Flow | H64: =-H43 -> -107 | I64: =I62 -> 0 | J64: =J62 -> 0 | K64: 0 | L64: 0 | M64: 0 | N64: 0 | O64: 0 | P64: 0 | Q64: 0 | R64: 0 | S64: 0 | T64: 0 | U64: 0 | V64: 0 | W64: 0 | X64: 0 | Y64: 0 | Z64: 0 | AA64: 0 | AB64: 0 | AC64: 0 | AD64: 0 | AE64: 0 | AF64: 0 | AG64: 0 | AH64: 0 | AI64: 0 | AJ64: 4.527639739 | AK64: 6.51257096 | AL64: 6.403516939
C65: Equitty IRR | H65: =IFERROR(IRR(64:64),FALSE) -> -0.06037515981
C67: Debt Cash Flow | H67: =-H42 -> -963 | I67: =I60+I58 -> 78.1515307 | J67: =J60+J58 -> 60.045439 | K67: 46.12685969 | L67: 235.528595 | M67: 179.6524981 | N67: 136.9280695 | O67: 104.2775662 | P67: 79.34043472 | Q67: 60.30671806 | R67: 46.19648745 | S67: 36.74269143 | T67: 29.53592608 | U67: 8.141023774 | V67: 8.04213758 | W67: 7.943203923 | X67: 7.844161825 | Y67: 7.744947271 | Z67: 7.645493028 | AA67: 7.545728444 | AB67: 7.445579243 | AC67: 7.344967304 | AD67: 7.243810425 | AE67: 7.142022077 | AF67: 7.039511143 | AG67: 6.93618164 | AH67: 6.831932422 | AI67: 6.726656873 | AJ67: 2.092602836 | AK67: 0 | AL67: 0
C68: Debt IRR | H68: =IRR(67:67) -> 0.035
I70: Year of PD | J70: =E6 -> 9
J72: Loss Given Default
H74: =J5 -> 0.035 | I74: 0.3 | J74: =I74+10% -> 0.4 | K74: =J74+10% -> 0.5 | L74: =K74+10% -> 0.6 | M74: =L74+10% -> 0.7
H75: 0.02 | I75: 0.035 | J75: 0.035 | K75: 0.035 | L75: 0.03500000001 | M75: 0.03500000001
H76: =H75+3% -> 0.05 | I76: 0.035 | J76: 0.03500000001 | K76: 0.035 | L76: 0.035 | M76: 0.035
H77: =H76+3% -> 0.08 | I77: 0.035 | J77: 0.035 | K77: 0.035 | L77: 0.035 | M77: 0.03389140476
H78: 0.11 | I78: 0.03500000001 | J78: 0.035 | K78: 0.03203758845 | L78: 0.02610898326 | M78: 0.02024534756
G79: PD | H79: 0.14 | I79: 0.035 | J79: 0.02897166161 | K79: 0.02145997508 | L79: 0.01403607256 | M79: 0.006736200014
H80: 0.17 | I80: 0.02921933949 | J80: 0.02008087269 | K80: 0.0110133965 | L80: 0.002082856883 | M80: -0.006644474958
H81: 0.2 | I81: 0.02212081538 | J81: 0.01138224554 | K81: 0.0007251533445 | L81: -0.009740514608 | M81: -0.01990347017
H82: 0.23 | I82: 0.01528871634 | J82: 0.002921676193 | K82: -0.00937132396 | L82: -0.02141910995 | M82: -0.0330453781
H83: 0.26 | I83: 0.00877186468 | J83: -0.00525045128 | K83: -0.01923575519 | L83: -0.03293210939 | M83: -0.0460718463
H84: 0.29 | I84: 0.002615794275 | J84: -0.01308068841 | K84: -0.02882053913 | L84: -0.04425146886 | M84: -0.05898057689
H85: 0.32 | I85: -0.003140779201 | J85: -0.02051504818 | K85: -0.03807084262 | L85: -0.05534038689 | M85: -0.07176398196
I88: LGD | J88: =E8 -> 0.13
I89: Year of PD | J89: =J70 -> 9
I91: Debt IRR | J91: Equity IRR | K91: Cum Def
I92: =J5 -> 0.035 | J92: =J4 -> -0.06037515981 | K92: =INDEX(22:22,MATCH(J70,17:17)) -> 0.9048483056
H93: 0.02 | I93: 0.035 | J93: 0.1004315167 | K93: 0.1662522379
H94: =H93+3% -> 0.05 | I94: 0.035 | J94: 0.08610349758 | K94: 0.3697505903
H95: =H94+3% -> 0.08 | I95: 0.035 | J95: 0.07082902161 | K95: 0.5278386367
H96: 0.11 | I96: 0.035 | J96: 0.05436676216 | K96: 0.6496435963
G97: PD | H97: 0.14 | I97: 0.035 | J97: 0.03630428918 | K97: 0.7426725827
H98: 0.17 | I98: 0.035 | J98: 0.01577871677 | K98: 0.8130597447
H99: 0.2 | I99: 0.035 | J99: -0.009842635737 | K99: 0.865782272
H100: 0.23 | I100: 0.035 | J100: -0.06037515981 | K100: 0.9048483056
H101: 0.26 | I101: 0.03215335171 | J101: FALSE | K101: 0.9334595892
H102: 0.29 | I102: 0.02851729838 | J102: FALSE | K102: 0.9541514993
H103: 0.32 | I103: 0.02518411686 | J103: FALSE | K103: 0.9689128997

Sheet Assmptions
A1: Assumptions
B2: Subprime Debt Assumptions
D3: Rate Charged on Sub-prime Loans | E3: 0.07
D4: Subprime Repayment Years | E4: 30
D5: Initial PD | E5: 0.05
D6: Years of High Default | E6: 5
D7: Stable PD | E7: 0.01
D8: Delay in Recoveries | E8: 3
D9: LGD | E9: 0.3
B10: Financial Structure Assumptions
D11: Amount of Subprime Loans | E11: 1000
D12: Loans/Equity | E12: 5
D13: Equity to Assets | E13: =1/E12 -> 0.2
D14: Interest Rate on Top-tier Debt | E14: 0.035
D15: Fees | E15: 0.07

Sheet Sheet2
